Cogmind - Beta 15 @@@ ROGUE MODE // 2025.06.01 @ 12:02:17 Player: amhumam Result: Destroyed by P-80 Master with Gamma Rifle Performance ------------- Evolutions (8) 4000 Regions Visited (15) 3000 Robots Destroyed (195) 975 Value Destroyed (11011) 11011 Prototype IDs (31) 620 Alien Tech Used (0) 0 Bonus (10656) 10656 TOTAL SCORE: 30262 Bonus ------- Triggered High Security 500 High Alert Combat Kills 3047 Follower Combat Kills 3461 Network Hubs Disabled 200 Registered with UFD 300 Met Optimus in HQ 500 Built Enhanced Grunts 300 Met R17 at Cetus 500 Met R17 at Research 2000 Friendly Fire -152 Cogmind --------- Core Integrity 0/1450 Matter 290/300 Energy 61/100 System Corruption 15% Temperature Cool (0) Movement Core (150) Ox2 Location -2/Research Parts ------- > --- POWER (2) -------- (None) > --- PROPULSION (6) --- Flexi-carbon Leg Myomer Leg Myomer Leg Overtuned Huge Scrapsphere > --- UTILITY (11) ----- Advanced Heat Sink Experimental Coolant Injector Experimental Optical Array Advanced Sensor Array Advanced Signal Interpreter Advanced Target Analyzer Hacking Suite System Shield > --- WEAPON (4) ------- Enhanced Quantum Rifle > --- INVENTORY (5) ---- Medium Matter Pod (100) Phase Gun Phase Gun Advanced Remote Datajack Peak State ------------ > --- POWER ------------ Light Quantum Reactor Light Quantum Reactor > --- PROPULSION ------- Medium Treads Medium Treads Advanced Medium Treads Advanced Medium Treads Overtuned Huge Scrapsphere > --- UTILITY ---------- Advanced Heat Sink Advanced Cooling System Experimental Coolant Injector Medium Storage Unit Experimental Optical Array Long-range Sensor Array Advanced Signal Interpreter Advanced Target Analyzer Medium Regenerative Plating Hacking Suite System Shield > --- WEAPON ----------- Advanced Variable Charge Gun Quantum Rifle Heavy Gauss Cannon Enhanced Hardcell Cannon > --- INVENTORY -------- Particle Reactor Medium Treads Biometal Medium Treads Medium Matter Pod Phase Gun Advanced Variable Charge Gun Enhanced Quantum Rifle Enhanced Quantum Rifle Railgun Railgun [Rating: 151] Favorites ----------- Power Light Antimatter Reactor Engine Deuterium Engine Power Core Neutrino Core Reactor Light Antimatter Reactor Propulsion Compact Wheel Treads Improved Treads Leg Thunder Leg Wheel Compact Wheel Flight Unit Q-thruster Utility Huge Storage Unit Device Advanced Heat Sink Storage Huge Storage Unit Processor Spectral Analyzer Hackware Hacking Suite Protection Centrium Medium Armor Plating Weapon Improved Medium Laser Energy Gun Improved Medium Laser Energy Cannon Heavy Particle Cannon Ballistic Gun Heavy Machine Gun Ballistic Cannon Mass Driver Launcher Subdweller Shrapnel Launcher Special Weapon Remote Datajack Slashing Weapon Scythe Piercing Weapon Lance Special Melee Weapon Advanced Datajack Build | -11 -10 -10 -9 -6 -6 -6 -5 -5 -5 -5 -5 -4 -4 -3 -2 ------- Run | Yrd Mat Sub Scr Fac Was Fac Fac Ext Cet Arc Hub Fac Arm Res Res Slots Evolved 16 | . . . . 8 . . 2 . . . . 2 . 2 2 Power 1 | . . . . . . . . . . . . 1 . . . Propulsion 4 | . . . . 2 . . 1 . . . . 1 . . . Utility 9 | . . . . 5 . . . . . . . . . 2 2 Weapon 2 | . . . . 1 . . 1 . . . . . . . . Parts Attached 246 | 6 4 10 6 14 2 18 24 35 8 5 3 13 28 32 38 Power 28 | 1 . 1 1 . . 2 2 3 . . 1 2 6 5 4 Engine 8 | 1 . 1 1 . . 2 1 2 . . . . . . . Core 3 | . . . . . . . 1 1 . . . 1 . . . Reactor 17 | . . . . . . . . . . . 1 1 6 5 4 Propulsion 67 | 2 1 1 1 5 . 2 9 14 3 . . 4 5 9 11 Treads 30 | . . . . 5 . 2 1 4 3 . . 4 5 2 4 Leg 22 | . . . . . . . 6 10 . . . . . . 6 Wheel 8 | 2 1 1 1 . . . . . . . . . . 3 . Hover . | . . . . . . . . . . . . . . . . Flight 7 | . . . . . . . 2 . . . . . . 4 1 Utility 76 | 1 2 1 2 8 1 5 6 7 3 5 . 5 5 11 14 Device 44 | . . . 1 3 1 2 4 2 2 3 . 4 4 8 10 Storage 7 | 1 1 1 1 . . . . 1 . . . . . 1 1 Processor 9 | . . . . 3 . 1 1 1 . . . . . 1 2 Hackware 5 | . . . . 1 . 1 . 1 . . . . . 1 1 Protection 11 | . 1 . . 1 . 1 1 2 1 2 . 1 1 . . Artifact . | . . . . . . . . . . . . . . . . Weapon 75 | 2 1 7 2 1 1 9 7 11 2 . 2 2 12 7 9 Energy Gun 25 | . 1 2 1 . . . 1 6 1 . . 1 2 3 7 Energy Cannon 12 | . . 1 1 . . 4 2 . . . . 1 2 1 . Ballistic Gun 15 | 2 . 1 . 1 . . 2 2 1 . . . 2 2 2 Ballistic Cannon 6 | . . . . . . . 1 2 . . 1 . 2 . . Launcher 9 | . . 2 . . . 3 . . . . . . 4 . . Special Weapon 3 | . . 1 . . 1 1 . . . . . . . . . Impact Weapon . | . . . . . . . . . . . . . . . . Slashing Weapon 2 | . . . . . . 1 . 1 . . . . . . . Piercing Weapon 2 | . . . . . . . 1 . . . . . . 1 . Special Melee Weapon 1 | . . . . . . . . . . . 1 . . . . Unidentified Prototypes 13 | . 1 . . . . 1 . . 2 1 . 3 1 3 1 Corrupted Parts 2 | . . . . . . . . . 1 1 . . . . . System Corruption 5 | . . . . . . . . . 1 4 . . . . . Parts Lost 135 | . 1 3 . . . 19 10 19 1 . 1 7 33 10 31 Power 19 | . . . . . . 2 . 2 . . 1 3 4 3 4 Propulsion 36 | . 1 1 . . . 3 4 9 1 . . 3 6 . 8 Utility 34 | . . 1 . . . 7 3 2 . . . . 7 4 10 Weapon 46 | . . 1 . . . 7 3 6 . . . 1 16 3 9 Highest Loss Streak 18 | . 1 1 . . . 18 8 16 1 . 1 5 17 3 15 To Critical Strikes 7 | . . . . . . . 2 . 1 . . 1 1 . 2 Average Backups 18 | 1 11 19 21 17 19 17 9 22 24 24 24 24 22 8 8 Power 1 | . 1 1 . . 1 . . 2 3 3 2 1 2 . . Propulsion 2 | . . . . 1 1 1 2 8 5 4 5 3 . 2 1 Utility 7 | . 4 9 10 7 9 7 3 5 8 9 9 11 11 1 1 Weapon 6 | . 5 8 9 6 7 5 2 5 8 6 6 7 6 4 4 Tool/Special . | . . . . . . . . . . . . . . . . Unused Backups 69 | . 4 4 11 1 . 5 6 10 3 3 . 2 9 2 9 Power 12 | . . 1 2 . . . 1 2 . 1 . . 4 . 1 Propulsion 10 | . . . 1 . . . . 5 1 1 . 1 . . 1 Utility 22 | . 2 2 6 . . 2 4 2 . . . 1 2 . 1 Weapon 24 | . 2 1 2 1 . 3 1 1 2 1 . . 3 2 5 Tool/Special 1 | . . . . . . . . . . . . . . . 1 Average Slot Usage (%) 86 | . 96 91 97 91 93 89 70 94 97 87 87 87 79 69 76 Engine 6 | . 14 14 14 6 6 5 2 4 5 5 4 . . . . Reactor 2 | . . . . . . . . . . . . 7 9 7 5 Treads 10 | . . . . 22 26 23 7 11 26 17 17 20 13 4 8 Leg 2 | . . . . . . . 12 17 . . . . . . 1 Wheel 9 | . 26 27 28 2 . . . . . . . . . 9 4 Device 10 | . . . 11 20 10 12 15 10 11 9 11 10 13 17 16 Storage 7 | . 14 14 14 6 6 6 3 5 5 5 5 5 4 2 3 Processor 5 | . . . . 6 13 12 11 13 6 5 5 5 5 . 10 Hackware 3 | . . . . 5 6 6 . 4 5 5 5 5 5 3 7 Protection 4 | . 11 6 . 1 1 1 . 1 9 12 11 9 5 2 2 Energy Gun 7 | . 11 8 11 6 6 5 1 8 9 11 11 6 5 7 6 Energy Cannon 3 | . . 1 14 5 6 8 3 . . . . 3 4 . . Ballistic Gun 4 | . 16 8 . 4 . . . . 11 11 10 5 5 5 1 Launcher 1 | . . 7 2 . . . . . . . . . . . . Peak Build Rating 151 | 6 12 15 25 57 50 61 80 96 115 122 124 141 135 132 151 Average Rating 70 | 4 10 13 21 49 49 52 61 83 93 120 120 135 123 108 119 On Entrance 61 | . 6 12 14 24 48 50 40 80 82 115 120 124 112 20 132 Naked Turns . | . . . . . . . . . . . . . . . . Heaviest Build 166 | 13 37 101 102 79 80 81 97 126 126 133 138 166 164 83 90 Greatest Support 235 | 26 32 32 26 92 92 92 104 127 183 183 183 235 215 60 116 Greatest Overweight (x) 5 | . 2 5 3 3 . 1 1 2 . . . . 1 2 4 Average Overweight (x) 1 | . . 2 2 . . . . . . . . . . 1 . Largest Inventory Capacity 25 | 8 15 25 25 20 20 20 25 25 25 25 25 25 25 10 10 Average Capacity 20 | 7 12 22 24 20 20 20 18 25 25 25 25 25 24 8 8 Most Carried 25 | 2 15 25 25 20 20 20 22 25 25 25 25 25 25 10 10 Average Carried 18 | 1 11 21 23 19 20 18 10 23 24 24 24 24 22 8 8 Final Capacity 25 | 8 15 25 20 20 20 20 25 25 25 25 25 25 5 10 5 Final Carried 25 | 2 15 25 20 20 20 8 20 25 25 24 24 25 5 10 4 Class Distribution -------------------- 37% | Mutant 23% | Scavenger-Tank 9% | Scavenger-Skirmisher 5% | Scavenger-Mutant 5% | Skirmisher 4% | Commander-Skirmisher Dominant Class ---------------- Mutant | -10/Materials Mutant | -10/Subcaves Mutant | -9/Scraptown Skirmisher | -6/Factory Commander-Skirmisher | -6/Waste Commander-Skirmisher | -6/Factory Mutant | -5/Factory Scavenger-Mutant | -5/Extension Scavenger-Tank | -5/Cetus Scavenger-Tank | -5/Archives Scavenger-Tank | -5/Hub_04(d) Scavenger-Tank | -4/Factory Scavenger-Tank | -4/Armory Scavenger-Skirmisher | -3/Research Scavenger-Skirmisher | -2/Research Resources | -11 -10 -10 -9 -6 -6 -6 -5 -5 -5 -5 -5 -4 -4 -3 -2 ----------- Run | Yrd Mat Sub Scr Fac Was Fac Fac Ext Cet Arc Hub Fac Arm Res Res Matter Collected 8428 | 195 266 396 455 206 108 188 729 511 584 178 50 334 2167 952 1109 Remotely . | . . . . . . . . . . . . . . . . Salvage Created 9696 | . 291 308 . 110 . 1051 824 1305 252 133 96 687 1547 1351 1741 Parts 380 | . 16 22 . 2 . 34 37 49 12 6 2 30 66 50 54 Haulers Intercepted 1 | . . . . . . . . . . . . . . 1 . Recyclers Shooed 1 | . . . . . . . . . . . . . . 1 . Parts Field Recycled . | . . . . . . . . . . . . . . . . Retrieved Matter . | . . . . . . . . . . . . . . . . Parts Self-Destructed 15 | . . 15 . . . . . . . . . . . . . Prevented . | . . . . . . . . . . . . . . . . Kills | -11 -10 -10 -9 -6 -6 -6 -5 -5 -5 -5 -5 -4 -4 -3 -2 ------- Run | Yrd Mat Sub Scr Fac Was Fac Fac Ext Cet Arc Hub Fac Arm Res Res Combat Hostiles Destroyed 169 | . 6 10 . 2 . 25 11 15 4 1 1 14 34 18 28 Melee 10 | . . . . . . . 4 3 . . . . . 3 . Guns 76 | . 6 3 . 1 . 3 1 8 3 1 1 5 19 10 15 Cannons 50 | . . . . 1 . 6 4 2 1 . . 8 13 2 13 AOE 22 | . . 7 . . . 14 . . . . . . 1 . . Classes Destroyed 21 | . 4 2 . 2 . 9 1 . . . . . 2 1 . Worker 8 | . . . . . . 4 1 . . . . . . 2 1 Builder 5 | . . . . . . 2 1 . . . . . . 2 . Hauler 1 | . . . . . . . . . . . . . . 1 . Recycler 5 | . 1 . . . . 1 1 2 . . . . . . . Mechanic 2 | . . . . . . 2 . . . . . . . . . Operator 3 | . 1 . . . . . . 1 . 1 . . . . . Watcher 2 | . . . . . . 1 . . . . 1 . . . . Swarmer 19 | . 3 . . . . . . . . . . . 7 4 5 Saboteur 4 | . . . . . . . . . . . . . 4 . . Grunt 55 | . 3 . . . . 12 5 1 . . . 6 7 9 12 Brawler 4 | . . . . . . 3 1 . . . . . . . . Duelist 3 | . . . . . . 2 . . . . . . . . 1 Protector 2 | . . . . . . 2 . . . . . . . . . Sentry 22 | . . . . 1 . 4 . 6 . 1 1 2 2 3 2 Demolisher 1 | . . . . . . 1 . . . . . . . . . Specialist 2 | . . . . . . . . . . . . . 2 . . Hunter 24 | . . . . . . . 3 7 . . . 4 4 2 4 Programmer 17 | . . . . 1 . . 2 . . . . 2 8 . 4 Behemoth 2 | . . . . . . 1 . 1 . . . . . . . Cetus Guard 4 | . . . . . . . . . 4 . . . . . . Artisan 1 | . . 1 . . . . . . . . . . . . . Subdweller 10 | . . 10 . . . . . . . . . . . . . Best Kill Streak 29 | . 4 2 . 1 . 29 6 3 2 1 2 4 6 6 10 Combat Bots Only 18 | . 4 2 . 1 . 18 4 3 2 1 1 4 6 4 9 Max Kills in Single Turn 6 | . 1 2 . 1 . 6 2 2 1 1 1 1 2 2 2 Gunslinging . | . . . . . . . . . . . . . . . . Exploded 6 | . . 2 . . . 6 . . . . . . 1 . . Melee 1 | . . . . . . . 1 1 . . . . . 1 . Uniques/NPCs Destroyed . | . . . . . . . . . . . . . . . . Combat | -11 -10 -10 -9 -6 -6 -6 -5 -5 -5 -5 -5 -4 -4 -3 -2 -------- Run | Yrd Mat Sub Scr Fac Was Fac Fac Ext Cet Arc Hub Fac Arm Res Res Hostile Shots Fired 2098 | . 45 24 . 60 . 411 157 172 39 10 4 243 397 173 363 Missed 631 | . 14 9 . 13 . 171 42 46 19 4 2 65 88 50 108 Hits 1467 | . 31 15 . 47 . 240 115 126 20 6 2 178 309 123 255 Melee 18 | . . . . . . 5 . . . . . . 3 . 10 Projectile 1449 | . 31 15 . 47 . 235 115 126 20 6 2 178 306 123 245 AOE 24 | . . . . . . 5 . . . . . . 19 . . Critical Strikes 69 | . 1 . . 1 . 5 5 4 3 2 . 10 17 6 15 Damage Taken 30635 | . 297 406 . 394 . 2898 2198 2842 551 147 243 3592 7664 2912 6491 Core 5024 | . 72 84 . 17 . 644 371 316 58 . . 192 767 1049 1454 Absorbed by Shields 121 | . . . . . . . . 93 23 . . . 5 . . Reduced by Siege Mode 264 | . . . . . . . . . . . . 43 221 . . Regen/Repaired (Parts) 1937 | . . . . . 78 304 . . . 66 . 205 499 459 326 Core Remaining (%) 36 | 100 . . 37 . . 22 . . . . 25 . 16 19 . Volleys Fired 490 | . 22 28 . 8 17 38 26 41 19 13 8 43 104 44 79 Largest 4 | . 2 2 . 3 1 3 4 4 4 4 4 4 4 4 4 Hottest 327 | . 76 106 . 156 5 201 284 278 225 225 225 247 322 303 327 Shots Fired 1414 | . 44 43 . 24 18 89 66 108 74 36 15 142 338 148 269 Gun 927 | . 44 19 . 16 1 22 26 88 69 36 12 74 194 128 198 Cannon 423 | . . 4 . 8 . 55 40 20 5 . 3 68 129 20 71 Launcher 43 | . . 16 . . . 12 . . . . . . 15 . . Special 21 | . . 4 . . 17 . . . . . . . . . . Kinetic 568 | . 22 15 . 8 . . 13 36 43 26 13 74 145 68 105 Thermal 757 | . 22 18 . 16 1 77 53 64 31 10 2 68 155 80 160 Explosive 33 | . . 6 . . . 12 . . . . . . 15 . . Electromagnetic 39 | . . 4 . . . . . 8 . . . . 23 . 4 Robot Hit Streak 36 | . 7 15 . 18 36 15 9 16 12 5 6 13 14 7 15 Robot Miss Streak 6 | . 4 2 . 1 . 2 4 6 2 3 1 6 5 6 5 Penetration Max 1 | . . . . . . . 1 1 1 . . . 1 1 1 Secondary Targets 7 | . 1 . . . . . . . 1 . . . . 2 3 Max Gunslinging Chain 1 | . 1 . . . . . . . 1 . . . . 1 1 Shots Hit Robots 889 | . 25 28 . 21 18 64 56 79 53 19 8 79 197 92 150 Core Hits 413 | . 13 17 . 4 . 90 21 33 17 6 4 32 70 39 67 Critical Kills 7 | . . . . . . . 1 . 1 . . . . 3 2 Critical Parts Destroyed 18 | . . . . . . . . 4 4 . . . 5 4 1 Critical Strikes 70 | . 1 1 . 1 . 3 5 14 9 . . 4 8 12 12 Burn 19 | . 1 1 . 1 . 3 1 5 2 . . 1 1 1 2 Meltdown 3 | . . . . . . . 1 . . . . . . 2 . Destroy 27 | . . . . . . . . 6 7 . . . 5 6 3 Blast 12 | . . . . . . . . 1 . . . 3 1 . 7 Corrupt 1 | . . . . . . . . . . . . . 1 . . Sever 4 | . . . . . . . 2 2 . . . . . . . Impale 4 | . . . . . . . 1 . . . . . . 3 . Melee Attacks 64 | . . . . . . 3 22 17 . . . . . 21 1 Impact . | . . . . . . . . . . . . . . . . Slashing 35 | . . . . . . 3 18 14 . . . . . . . Piercing 29 | . . . . . . . 4 3 . . . . . 21 1 Sneak Attacks 3 | . . . . . . 2 1 . . . . . . . . Combat Hostiles . | . . . . . . . . . . . . . . . . Follow-up Attacks 5 | . . . . . . . 4 1 . . . . . . . Damage Inflicted 30079 | . 402 1227 . 428 16 4533 1855 2088 1350 470 186 2500 6623 3451 4950 Guns 15209 | . 402 231 . 272 16 340 476 1302 1243 470 182 1053 3123 2622 3477 Cannons 8239 | . . . . 156 . 1040 768 417 107 . . 1439 2326 513 1473 Explosions 5199 | . . 996 . . . 3029 . . . . . . 1174 . . Melee 1420 | . . . . . . 124 611 369 . . . . . 316 . Ramming 12 | . . . . . . . . . . . 4 8 . . . Kinetic 9701 | . 145 645 . 121 . . 193 671 791 381 157 1171 2101 1361 1964 Thermal 14711 | . 257 137 . 307 16 1995 1051 974 559 89 25 1321 3247 1774 2959 Explosive 3871 | . . 377 . . . 2414 . . . . . . 1080 . . Electromagnetic 364 | . . 68 . . . . . 74 . . . . 195 . 27 Impact . | . . . . . . . . . . . . . . . . Slashing 983 | . . . . . . 124 490 369 . . . . . . . Piercing 437 | . . . . . . . 121 . . . . . . 316 . Highest Corruption 15 | . . . . 1 1 1 1 1 2 5 2 5 11 . 15 Average Corruption 3 | . . . . 1 1 1 1 1 1 2 2 3 7 . 6 Corruption Purged 6 | . . . . . . . . . . 6 . . . . . Corruption Blocked . | . . . . . . . . . . . . . . . . Effects 115 | . . . . 1 3 3 5 4 3 4 . 3 59 . 30 Message Errors 33 | . . . . 1 . 1 2 . . 1 . 1 21 . 6 Matter Fused 31 | . . . . . . . 3 1 1 1 . 1 17 . 7 Heat Flow Errors 5 | . . . . . . . . . . . . . 2 . 3 Energy Discharges 14 | . . . . . . 1 . 1 . 1 . 1 6 . 4 Parts Rejected 3 | . . . . . 1 . . . . . . . . . 2 Parts Fused 1 | . . . . . . . . . . . . . 1 . . Data Loss (minor) 13 | . . . . . 1 . . 1 1 1 . . 3 . 6 Data Loss (major) 7 | . . . . . . . . 1 1 . . . 4 . 1 Misfires 3 | . . . . . 1 1 . . . . . . 1 . . Alerts 2 | . . . . . . . . . . . . . 2 . . Misdirections 2 | . . . . . . . . . . . . . 1 . 1 Weapon Failures 1 | . . . . . . . . . . . . . 1 . . Overload Shots . | . . . . . . . . . . . . . . . . Overflow Damage 397 | . . . . . . 45 26 . . . 5 30 176 115 . Projectiles 105 | . . . . . . 16 18 . . . . 30 41 . . Explosions 146 | . . . . . . 6 . . . . 5 . 135 . . Melee 146 | . . . . . . 23 8 . . . . . . 115 . Knockbacks 23 | . . . . . . . . 1 . . . 10 1 . 11 Impact . | . . . . . . . . . . . . . . . . Kinetic 18 | . . . . . . . . 1 . . . 7 1 . 9 Secondary 5 | . . . . . . . . . . . . 3 . . 2 Self-Inflicted Damage 750 | . . 4 . . . 89 . . . . 99 . 558 . . Shots 18 | . . 1 . . . 3 . . . . 1 . 13 . . Rammed 2 | . . . . . . . . . . . 1 1 . . . Targets Rammed 2 | . . . . . . . . . . . 1 1 . . . Kicked . | . . . . . . . . . . . . . . . . Crushed . | . . . . . . . . . . . . . . . . Highest Temperature 728 | . 252 . . 362 . 279 357 231 248 48 24 452 519 728 458 Average Temperature 129 | . 117 . . 161 . 91 125 77 141 20 16 168 161 183 85 Received Heat Transfer 4370 | . 78 12 . 96 . 738 459 365 45 . . 469 946 676 486 Effects 28 | . 1 . . . . . . 2 1 . . 1 10 8 5 Shutdowns 8 | . . . . . . . . . . . . . 5 . 3 Energy Bleed 3 | . 1 . . . . . . . . . . . 1 1 . Interference 7 | . . . . . . . . 2 1 . . . 2 2 . Matter Decay 3 | . . . . . . . . . . . . . . 1 2 Short Circuit 1 | . . . . . . . . . . . . . 1 . . Damage (minor) 3 | . . . . . . . . . . . . 1 1 1 . Damage (major) 2 | . . . . . . . . . . . . . . 2 . Damage (core) 1 | . . . . . . . . . . . . . . 1 . Siege Activations 12 | . . . . . . . . . . . . 3 9 . . Total Turns 203 | . . . . . . . . . . . . 36 167 . . Longest Duration 32 | . . . . . . . . . . . . 15 32 . . Martial Activations . | . . . . . . . . . . . . . . . . Shielding Activations . | . . . . . . . . . . . . . . . . Robots Disrupted . | . . . . . . . . . . . . . . . . Combat Hostiles . | . . . . . . . . . . . . . . . . Robots Corrupted 2 | . . . . . . . . . . . . 1 1 . . Combat Hostiles 2 | . . . . . . . . . . . . 1 1 . . Parts Fried 2 | . . 2 . . . . . . . . . . . . . Impact Corruptions 1 | . . . . . . . . . . . . 1 . . . Robots Melted 9 | . . . . . . 2 2 2 . . . . . 3 . Combat Hostiles 9 | . . . . . . 2 2 2 . . . . . 3 . Parts Melted 45 | . 2 . . 5 . 2 7 8 . . . . 3 6 12 Heat Transferred 19708 | . 629 370 . 592 37 2869 1422 2330 999 148 37 851 3164 2412 3848 Parts Sabotaged 7 | . . . . . . . . . . . . . 7 . . Parts Stolen . | . . . . . . . . . . . . . . . . Parts Stripped . | . . . . . . . . . . . . . . . . Power Chain Reactions 1 | . . . . . . . . . . . . . 1 . . Alert | -11 -10 -10 -9 -6 -6 -6 -5 -5 -5 -5 -5 -4 -4 -3 -2 ------- Run | Yrd Mat Sub Scr Fac Was Fac Fac Ext Cet Arc Hub Fac Arm Res Res Maximum Alert Level 5 | . . . . . . 5 5 4 3 2 2 2 2 2 2 Low Security (%) 23 | 100 100 . . 100 100 5 . . . . 4 31 . . 19 Level 1 30 | . . . . . . 9 . . . 48 86 58 92 16 32 Level 2 20 | . . . . . . 22 . . . 51 8 9 7 83 47 Level 3 13 | . . . . . . 10 . 85 100 . . . . . . Level 4 8 | . . . . . . 8 82 14 . . . . . . . Level 5 2 | . . . . . . 10 17 . . . . . . . . High Security 2 | . . . . . . 33 . . . . . . . . . Max Security . | . . . . . . . . . . . . . . . . Peak Influence 2783 | . 120 . . 30 7 2783 1717 1485 908 496 508 508 576 567 489 Initial 1315 | . . . . . 7 . 1315 825 831 339 107 230 215 245 234 Average 530 | . 44 . . 2 . 1383 1394 1016 862 401 340 232 314 456 328 Influence Increases 11247 | . 220 . . 60 . 3413 844 1860 287 189 473 805 1170 762 1164 Destroy 0b10 Robot/C 5080 | . 120 . . 40 . 1420 320 900 160 80 100 280 680 420 560 Destroy 0b10 Robot/NC 255 | . 10 . . . . 145 15 30 10 5 5 . . 30 5 Destroy Leader 880 | . 30 . . 20 . 246 70 120 . . 22 70 120 92 90 Allied During Kill 2240 | . . . . . . 1201 66 617 85 85 127 27 . 32 . Successful Hack 134 | . . . . . . . 27 22 . . 12 17 16 11 29 Select Force Hacks 30 | . 30 . . . . . . . . . . . . . . Disable Machine 645 | . . . . . . 135 45 30 . 15 45 165 105 30 75 Anti-Garrison Action 150 | . . . . . . 150 . . . . . . . . . Destroy Structure 1233 | . . . . . . 116 106 126 32 4 162 216 204 102 165 Partial Spotted 45 | . . . . . . . 15 . . . . . . 15 15 Lose Combat Pursuer 555 | . 30 . . . . . 180 15 . . . 30 45 30 225 Influence Decreases 10845 | . 164 56 . 38 22 728 1844 2060 924 731 309 834 1143 813 1179 Entered New Map 4507 | . . 28 . . 15 . 1370 860 654 509 199 240 226 223 183 Time Decay 3478 | . 154 28 . 38 7 228 334 440 160 222 60 334 577 410 486 Lost Part 1320 | . 10 . . . . 190 100 190 10 . 10 70 330 100 310 Lost Ally 1090 | . . . . . . 310 40 420 100 . 40 40 10 80 50 Purge Threat 450 | . . . . . . . . 150 . . . 150 . . 150 Squads Dispatched 77 | . 1 . . 1 . 20 9 6 . . . 6 9 12 13 Investigation 22 | . 1 . . . . 5 4 3 . . . 1 2 6 . Extermination 12 | . . . . 1 . . 1 . . . . 1 4 . 5 Reinforcement 18 | . . . . . . 5 . 2 . . . 1 3 5 2 Assault 19 | . . . . . . 10 4 1 . . . 2 . . 2 Garrison 6 | . . . . . . . . . . . . 1 . 1 4 Intercept . | . . . . . . . . . . . . . . . . Searches Triggered . | . . . . . . . . . . . . . . . . Construction Impeded 2 | . . . . . . 1 . 1 . . . . . . . Haulers Reinforced 2 | . . . . . . 1 . . . . . . . 1 . Active Scanning Responses . | . . . . . . . . . . . . . . . . Cargo Convoy Interrupts 1 | . . . . . . . . . . . . 1 . . . Stealth | -11 -10 -10 -9 -6 -6 -6 -5 -5 -5 -5 -5 -4 -4 -3 -2 --------- Run | Yrd Mat Sub Scr Fac Was Fac Fac Ext Cet Arc Hub Fac Arm Res Res Distress Signals 21 | . . . . 1 . 1 1 2 1 . . 1 2 9 3 Communications Jammed . | . . . . . . . . . . . . . . . . Distress Signals . | . . . . . . . . . . . . . . . . Times Spotted 410 | . 15 10 . 5 5 59 35 49 9 8 8 49 58 40 60 Peak Tracking Total 26 | . 6 2 . 3 2 17 12 9 5 2 4 26 6 7 9 Tactical Retreats 21 | . 2 . . . . . 6 1 . . . 2 2 2 6 Traps | -11 -10 -10 -9 -6 -6 -6 -5 -5 -5 -5 -5 -4 -4 -3 -2 ------- Run | Yrd Mat Sub Scr Fac Was Fac Fac Ext Cet Arc Hub Fac Arm Res Res Traps Triggered 19 | . . 2 . 4 . 1 . 1 . . 1 1 2 4 3 Indirectly 1 | . . . . . . . . . . . 1 . . . . Trap Hack Attempts . | . . . . . . . . . . . . . . . . Triggered . | . . . . . . . . . . . . . . . . Disarmed . | . . . . . . . . . . . . . . . . Reprogrammed . | . . . . . . . . . . . . . . . . Reused . | . . . . . . . . . . . . . . . . Traps Extracted . | . . . . . . . . . . . . . . . . Installed . | . . . . . . . . . . . . . . . . Triggered . | . . . . . . . . . . . . . . . . Machines | -11 -10 -10 -9 -6 -6 -6 -5 -5 -5 -5 -5 -4 -4 -3 -2 ---------- Run | Yrd Mat Sub Scr Fac Was Fac Fac Ext Cet Arc Hub Fac Arm Res Res Machines Disabled 46 | . . 1 . . . 10 3 2 . 1 3 12 7 2 5 Max in Single Turn 5 | . . 1 . . . 4 . . . 1 3 5 2 1 1 Garrison Access 3 | . . . . . . 1 . . . . . 1 . 1 . Network Hub 1 | . . . . . . . . . . . 1 . . . . Energy Cycler 1 | . . . . . . . . 1 . . . . . . . Machines Repaired . | . . . . . . . . . . . . . . . . Machines Dismantled . | . . . . . . . . . . . . . . . . Machines Sabotaged . | . . . . . . . . . . . . . . . . Overloaded Fab Kills . | . . . . . . . . . . . . . . . . Hacking | -11 -10 -10 -9 -6 -6 -6 -5 -5 -5 -5 -5 -4 -4 -3 -2 --------- Run | Yrd Mat Sub Scr Fac Was Fac Fac Ext Cet Arc Hub Fac Arm Res Res Machines Accessed 56 | . 3 1 1 2 . 5 7 12 . 1 1 4 6 8 5 Terminals 32 | . 2 . . 1 . 2 1 10 . . 1 3 3 4 5 Fabricators 2 | . . . . 1 . . . . . . . . 1 . . Repair Stations 3 | . . . . . . . 2 . . . . . 1 . . Recycling Units 14 | . 1 . . . . 3 4 2 . . . . 1 3 . Scanalyzers . | . . . . . . . . . . . . . . . . Garrison Access 2 | . . . . . . . . . . . . 1 . 1 . Total Hacks 168 | . 5 1 3 6 . 9 9 32 . 25 2 16 13 28 19 Successful 80 | . 2 1 3 3 . 3 6 9 . 25 1 9 5 8 5 Failed 88 | . 3 . . 3 . 6 3 23 . . 1 7 8 20 14 Catastrophic 18 | . . . . . . 1 1 3 . . 1 . 3 5 4 Database Lockouts . | . . . . . . . . . . . . . . . . Manual 91 | . 5 . . 4 . 9 5 12 1 . 1 13 4 24 13 Terminals 100 | . 3 . . 3 . 5 1 28 . . 2 15 6 18 19 Fabricators 5 | . . . . 3 . . . . . . . . 2 . . Repair Stations 7 | . . . . . . . 3 . . . . . 4 . . Recycling Units 23 | . 2 . . . . 4 5 4 . . . . 1 7 . Scanalyzers . | . . . . . . . . . . . . . . . . Garrison Access 4 | . . . . . . . . . . . . 1 . 3 . Terminal Hacks 47 | . . 1 3 . . . 1 5 . 25 . 5 2 2 3 Record 29 | . . . 3 . . . . . . 25 . 1 . . . Open Door 7 | . . . . . . . 1 4 . . . . 2 . . Branch Access Points 1 | . . . . . . . . . . . . . . . 1 Terminal Index 3 | . . . . . . . . . . . . 1 . 1 1 Alert Level 2 | . . . . . . . . . . . . 1 . 1 . Unreport Threat 3 | . . . . . . . . 1 . . . 1 . . 1 Locate Traps 1 | . . . . . . . . . . . . 1 . . . Proto ID Catalog 1 | . . 1 . . . . . . . . . . . . . Fabricator Hacks 2 | . . . . 1 . . . . . . . . 1 . . Network Status 2 | . . . . 1 . . . . . . . . 1 . . Repair Station Hacks 1 | . . . . . . . . . . . . . 1 . . Scan Component 1 | . . . . . . . . . . . . . 1 . . Recycling Unit Hacks 1 | . . . . . . . . 1 . . . . . . . Retrieve Components 1 | . . . . . . . . 1 . . . . . . . Scanalyzer . | . . . . . . . . . . . . . . . . Garrison Access Hacks 2 | . . . . . . . . . . . . 1 . 1 . Seal Access 2 | . . . . . . . . . . . . 1 . 1 . Unauthorized Hacks 27 | . 2 . . 2 . 3 5 3 . . 1 3 1 5 2 Terminals 12 | . 1 . . 1 . . . 1 . . 1 3 . 3 2 Assimilate 1 | . . . . . . . . . . . . . . . 1 Botnet 11 | . 1 . . 1 . . . 1 . . 1 3 . 3 1 Fabricators 1 | . . . . 1 . . . . . . . . . . . Report 1 | . . . . 1 . . . . . . . . . . . Repair Stations . | . . . . . . . . . . . . . . . . Recycling Units 14 | . 1 . . . . 3 5 2 . . . . 1 2 . Reject 1 | . . . . . . . . 1 . . . . . . . Recyclers 1 | . . . . . . . . 1 . . . . . . . Mask 1 | . . . . . . . 1 . . . . . . . . Tunnel 1 | . 1 . . . . . . . . . . . . . . Fedlink 8 | . . . . . . 3 3 . . . . . 1 1 . Scrapoids 2 | . . . . . . . 1 . . . . . . 1 . Scanalyzers . | . . . . . . . . . . . . . . . . Garrison Access . | . . . . . . . . . . . . . . . . Data Cores Recovered 2 | . 1 . . . . 1 . . . . . . . . . Used 1 | . 1 . . . . . . . . . . . . . . Hacking Detections 35 | . 3 . . 1 . 3 2 10 . . 1 3 2 5 5 Full Trace Events 5 | . . . . . . . . 3 . . . . 1 1 . Feedback Events . | . . . . . . . . . . . . . . . . Feedback Blocked . | . . . . . . . . . . . . . . . . Robot Schematics Acquired . | . . . . . . . . . . . . . . . . Robots Built . | . . . . . . . . . . . . . . . . Authchips . | . . . . . . . . . . . . . . . . Time . | . . . . . . . . . . . . . . . . Total Robot Build Rating . | . . . . . . . . . . . . . . . . Part Schematics Acquired . | . . . . . . . . . . . . . . . . Parts Built . | . . . . . . . . . . . . . . . . Authchips . | . . . . . . . . . . . . . . . . Time . | . . . . . . . . . . . . . . . . Total Part Build Rating . | . . . . . . . . . . . . . . . . Parts Repaired . | . . . . . . . . . . . . . . . . Time . | . . . . . . . . . . . . . . . . Parts Recycled . | . . . . . . . . . . . . . . . . Recycled Matter . | . . . . . . . . . . . . . . . . Retrieved Matter . | . . . . . . . . . . . . . . . . Retrieved Components 10 | . . . . . . . . 10 . . . . . . . Parts Scanalyzed . | . . . . . . . . . . . . . . . . Part Schematics Acquired . | . . . . . . . . . . . . . . . . Parts Damaged . | . . . . . . . . . . . . . . . . Bothacking | -11 -10 -10 -9 -6 -6 -6 -5 -5 -5 -5 -5 -4 -4 -3 -2 ------------ Run | Yrd Mat Sub Scr Fac Was Fac Fac Ext Cet Arc Hub Fac Arm Res Res Used RIF Installer . | . . . . . . . . . . . . . . . . Robots Hacked 6 | . . . . . 6 . . . . . . . . . . Non-combat . | . . . . . . . . . . . . . . . . Combat 1 | . . . . . 1 . . . . . . . . . . Robot Hacks Applied 1 | . . . . . 1 . . . . . . . . . . parse_system 1 | . . . . . 1 . . . . . . . . . . Manual 6 | . . . . . 6 . . . . . . . . . . Relay Couplers Released 1 | . . . . . . 1 . . . . . . . . . Machine Destruction 1 | . . . . . . 1 . . . . . . . . . Fabnet Peak Effective % . | . . . . . . . . . . . . . . . . Robots Rewired 28 | . . . . . 5 . . 23 . . . . . . . Allies Hacked . | . . . . . . . . . . . . . . . . Hacks Repelled . | . . . . . . . . . . . . . . . . Allies | -11 -10 -10 -9 -6 -6 -6 -5 -5 -5 -5 -5 -4 -4 -3 -2 -------- Run | Yrd Mat Sub Scr Fac Was Fac Fac Ext Cet Arc Hub Fac Arm Res Res Total Allies 69 | . . . . . 24 . 6 28 5 . . . . 5 1 Largest Group 23 | . . . . . 23 23 5 13 6 5 5 2 . 4 1 Highest-Rated Group 1266 | . . . . . 1266 1266 238 545 514 480 480 192 . 256 45 Highest-Rated Ally 159 | . . . . . 141 141 78 159 159 96 96 96 . 64 45 Total Orders 26 | . . . . . 3 8 4 . . . 2 2 2 4 1 STAY 4 | . . . . . 2 . 1 . . . 1 . . . . FOLLOW 3 | . . . . . 1 . 1 . . . 1 . . . . EXPLORE 15 | . . . . . . 6 1 . . . . 1 2 4 1 RETURN 4 | . . . . . . 2 1 . . . . 1 . . . Ally Attacks 759 | . . . . . 8 270 40 308 29 16 33 7 . 48 . Total Damage 20382 | . . . . . 399 7805 1296 6971 1143 595 910 281 . 982 . Kills 134 | . . . . . 1 70 7 36 6 3 5 . . 6 . Allies Corrupted 3 | . . . . . . 1 . . . . 2 . . . . Allies Melted . | . . . . . . . . . . . . . . . . Intel | -11 -10 -10 -9 -6 -6 -6 -5 -5 -5 -5 -5 -4 -4 -3 -2 ------- Run | Yrd Mat Sub Scr Fac Was Fac Fac Ext Cet Arc Hub Fac Arm Res Res Active Infowar (turns) 8925 | . . . . 688 562 289 743 1090 335 465 136 750 1749 858 1260 Optics 6683 | . . . . . . 20 743 1090 335 465 136 750 1749 135 1260 Sensors 3993 | . . . . 688 562 289 281 . . . . 93 242 822 1016 Triangulation 256 | . . . . . . . 256 . . . . . . . . Robot Analysis Total . | . . . . . . . . . . . . . . . . Derelict Logs Recovered 5 | . . . 5 . . . . . . . . . . . . Drone Launches 22 | . . . . . . 8 2 . . . . 2 2 4 4 Drone Recoveries 11 | . . . . . . 4 2 . . . . 2 1 2 . Exploration | -11 -10 -10 -9 -6 -6 -6 -5 -5 -5 -5 -5 -4 -4 -3 -2 ------------- Run | Yrd Mat Sub Scr Fac Was Fac Fac Ext Cet Arc Hub Fac Arm Res Res Turns Passed 14077 | 48 454 2446 1532 729 562 780 743 1090 335 465 136 750 1761 986 1260 Spaces Moved 8541 | 43 351 1569 1036 441 289 382 446 488 157 208 69 333 719 928 1082 Core 582 | 3 . . . . . . 46 . . . . . 28 58 447 Treads 2890 | . . . . 354 289 382 139 165 157 208 69 333 691 . 103 Legs 483 | . . . . . . . 160 323 . . . . . . . Wheels 4372 | 40 351 1569 1036 87 . . . . . . . . . 805 484 Hover . | . . . . . . . . . . . . . . . . Flight 214 | . . . . . . . 101 . . . . . . 65 48 Fastest Speed 31 | 50 90 115 120 120 156 156 35 120 160 160 160 160 50 31 40 Average Speed 126 | 87 101 131 134 149 156 161 111 137 160 160 160 160 172 77 77 Slowest Speed 460 | 100 130 175 135 460 156 245 245 260 160 160 160 160 245 90 152 Overloaded Moves . | . . . . . . . . . . . . . . . . Propulsion Burnouts . | . . . . . . . . . . . . . . . . Robots Hopped 1 | . . . . . . . . . . . . . . 1 . Potential Cave-ins . | . . . . . . . . . . . . . . . . Cave-ins Triggered . | . . . . . . . . . . . . . . . . Exploration Rate (%) 46 | 3 58 58 79 11 88 33 19 77 60 90 11 13 57 62 26 Regions Visited 15 Branch Regions 7 Pre-discovered Areas 2 | . 1 . . . . 1 . . . . . . . . . Known Exits Taken 2 | . . . . . . 1 1 . . . . . . . . Unknown Exits Taken 11 | 1 1 1 1 . . . . 1 1 1 1 1 1 1 . Scrap Searched 14 | . . 8 6 . . . . . . . . . . . . Spaces Dug 26 | . . . . . . 4 2 3 . . 1 2 . 8 6 Terrain Destroyed 738 | . . 130 . . . 60 8 12 1 1 165 149 122 38 52 Melee 13 | . . . . . . 1 1 3 . . . . . 8 . Projectile 191 | . . . . . . 9 7 9 1 1 3 37 42 30 52 AOE 534 | . . 130 . . . 50 . . . . 162 112 80 . . Terrain Rammed . | . . . . . . . . . . . . . . . . Walls Destroyed . | . . . . . . . . . . . . . . . . Machines Disabled . | . . . . . . . . . . . . . . . . Actions | -11 -10 -10 -9 -6 -6 -6 -5 -5 -5 -5 -5 -4 -4 -3 -2 --------- Run | Yrd Mat Sub Scr Fac Was Fac Fac Ext Cet Arc Hub Fac Arm Res Res Total 10782 | 50 405 1893 1186 489 391 467 612 806 206 318 81 450 1024 1075 1329 Wait 814 | . 4 254 110 . 82 5 44 19 3 72 . 36 105 13 67 Move 8527 | 42 350 1568 1035 441 288 381 445 487 156 207 69 333 718 925 1082 Hop 1 | . . . . . . . . . . . . . . 1 . Pick Up 230 | 2 19 18 15 11 . 8 31 41 7 8 1 11 25 15 18 Fast Attach 123 | 6 2 2 2 11 2 3 15 9 4 1 . 2 11 26 27 Attach 126 | . . 2 1 7 . 13 12 23 1 1 1 6 27 11 21 Detach 15 | . . . . . . . 3 3 . . . . . 3 6 Swap 84 | . 2 11 3 4 1 7 2 12 3 5 2 11 17 2 2 Drop 173 | . 6 10 20 7 1 8 16 18 13 11 . 8 17 14 24 Fire 490 | . 22 28 . 8 17 38 26 41 19 13 8 43 104 44 79 Melee 57 | . . . . . . 3 18 14 . . . . . 21 1 Ram . | . . . . . . . . . . . . . . . . Kick . | . . . . . . . . . . . . . . . . Crush . | . . . . . . . . . . . . . . . . Escape Stasis . | . . . . . . . . . . . . . . . . Rewire 139 | . . . . . . . . 139 . . . . . . . Trap . | . . . . . . . . . . . . . . . . Miscellaneous 3 | . . . . . . 1 . . . . . . . . 2 Route ------- -11/Scrapyard -10/Materials (discovered 3 exits: [*Mat] / [*Min] / *Sub) -10/Subcaves (discovered 2 exits: [*Mat] / *Scr) -9/Scraptown (discovered 2 exits: *Fac x2) -6/Factory (discovered 3 exits: Fac x2 / Low) -6/Waste -6/Factory (discovered 2 exits: *Fac x2) -5/Factory -5/Extension (discovered 2 exits: *Fac / *Cet) -5/Cetus (discovered 2 exits: *Fac / *Arc) -5/Archives (discovered 3 exits: *Fac / *Hub x2) -5/Hub_04(d) -4/Factory -4/Armory -3/Research (discovered 3 exits: *Res x2 / [*Qua]) -2/Research (discovered 2 exits: Tes x2) History --------- Turn | Location | Event 23 | -11/Scrapyard | Discovered new exit (range 16) 49 | -11/Scrapyard | Entered Materials 249 | -10/Materials | Discovered new exit (range 9) 302 | -10/Materials | Discovered new exit (range 15) 310 | -10/Materials | Build established: Mutant 350 | -10/Materials | Discovered new exit (range 13) 503 | -10/Materials | Entered Subcaves 504 | -10/Subcaves | Approached by a straggling Scientist 1140 | -10/Subcaves | Scientist uncovered a shortcut to Scraptown 1258 | -10/Subcaves | Visited 4L-MR0's lab 1278 | -10/Subcaves | Found Rainbow Chip 1651 | -10/Subcaves | Shifting Twisted Machinery released Battle Rifle 1661 | -10/Subcaves | Shifting Twisted Machinery released Sub. Shrapnel Launcher 1797 | -10/Subcaves | Shifting Twisted Machinery released Battle Rifle 1799 | -10/Subcaves | Shifting Twisted Machinery released Scrap Shield 1833 | -10/Subcaves | A swath of the cavern ceiling suddenly collapsed 1886 | -10/Subcaves | Disturbed a concealed Subdweller 2066 | -10/Subcaves | Core integrity fell below 50% 2108 | -10/Subcaves | Ambushed by Subdwellers from Twisted Machinery 2189 | -10/Subcaves | Discovered new exit (range 11) 2949 | -10/Subcaves | Entered Scraptown 3084 | -9/Scraptown | Scanned Subdweller tech in exchange for log data 3087 | -9/Scraptown | Learned Research stockpile data 3089 | -9/Scraptown | Learned location of 1 exit from Factory 3090 | -9/Scraptown | Learned Research emergency access door positions 3091 | -9/Scraptown | Learned 12 Factory zone layouts 3093 | -9/Scraptown | Learned Factory emergency access door positions 3107 | -9/Scraptown | Discovered new exit (range 9) 3442 | -9/Scraptown | Visited UFD Registry 3442 | -9/Scraptown | Registered with UFD as "Chaineater" 3461 | -9/Scraptown | Visited The Evicted 3510 | -9/Scraptown | Visited Infowarlord's Domain 3539 | -9/Scraptown | Visited Junk Repository 3613 | -9/Scraptown | Visited Curators Association 3640 | -9/Scraptown | Visited Derelict Rescue Squad 3671 | -9/Scraptown | Visited Junk Repository 3709 | -9/Scraptown | Visited Sword Containment 3741 | -9/Scraptown | Visited Botcube Research 3776 | -9/Scraptown | Visited DA-N13 Charitable Foundation 3790 | -9/Scraptown | Found DCF Scrap (30 items) 3900 | -9/Scraptown | Delivered Scrap Shield to a Scientist 4021 | -9/Scraptown | Found Botcube 4120 | -9/Scraptown | Found Spectral Analyzer 4246 | -9/Scraptown | Visited Abandonware Association 4259 | -9/Scraptown | Learned abandonware demo "REBOOT5.EXE" 4422 | -9/Scraptown | Met Optimus 4422 | -9/Scraptown | Accepted into 0bPrime 4476 | -9/Scraptown | Discovered new exit (range 5) 4481 | -9/Scraptown | Entered Factory 4481 | -6/Factory | Evolved 8 slots: Propulsion x2, Utility x5, Weapon x1 4482 | -6/Factory | Identified exit to Lower Caves 4483 | -6/Factory | Identified exit to Factory 5210 | -6/Factory | Sucked down chute 5210 | -6/Factory | Entered Waste 5270 | -6/Waste | Spotted C-40 Crusher 5277 | -6/Waste | Rewired C-40 Crusher 5294 | -6/Waste | Spotted C-40 Crusher 5298 | -6/Waste | Rewired C-40 Crusher 5309 | -6/Waste | Spotted C-40 Crusher 5317 | -6/Waste | Rewired C-40 Crusher 5327 | -6/Waste | Spotted C-40 Crusher 5337 | -6/Waste | Allies destroyed C-40 Crusher 5345 | -6/Waste | Spotted C-40 Crusher 5355 | -6/Waste | Rewired C-40 Crusher 5363 | -6/Waste | Spotted C-40 Crusher 5371 | -6/Waste | Rewired C-40 Crusher 5390 | -6/Waste | Discovered new exit (range 15) 5429 | -6/Waste | Warlord forces began an assault 5647 | -6/Waste | Build established: Commander-Skirmisher 5692 | -6/Waste | Identified exit to Factory 5772 | -6/Waste | Entered Factory 5772 | -6/Factory | Accompanied by 23 allies 5966 | -6/Factory | Discovered exit to Factory (range 34) 6041 | -6/Factory | Loaded intel: 8 recycling unit locations 6144 | -6/Factory | Lost 4 allies 6148 | -6/Factory | Spotted B-75 Beast 6159 | -6/Factory | Learned location of Protoforge (-2) 6178 | -6/Factory | Destroyed B-75 Beast 6197 | -6/Factory | Lost 4 allies 6288 | -6/Factory | High security lockdown imminent 6355 | -6/Factory | Lost 7 allies 6368 | -6/Factory | High security lockdown engaged 6435 | -6/Factory | Core integrity fell below 50% 6474 | -6/Factory | Discovered exit to Factory (range 15) 6488 | -6/Factory | Destroyed 18 combat bots 6495 | -6/Factory | Lost 18 parts (2p3n6u7w) 6552 | -6/Factory | Entered another Factory area 6552 | -5/Factory | Evolved 2 slots: Propulsion x1, Weapon x1 6674 | -5/Factory | Loaded intel: 8 recycling unit locations 6798 | -5/Factory | Spotted B-75 Beast 6852 | -5/Factory | First assault squad dispatched 6932 | -5/Factory | Lost 8 parts (3n3u2w) 7097 | -5/Factory | Scrapoids reinforcements arrived? 7225 | -5/Factory | Botcube activated 7245 | -5/Factory | Botcube completed mutation into wheeled form, armed with 1 gun, 1 cannon. 7246 | -5/Factory | Lost 3 allies 7291 | -5/Factory | Discovered new exit (range 5) 7294 | -5/Factory | Identified exit to Extension 7295 | -5/Factory | Entered Extension 7295 | -5/Extension | Accompanied by 2 allies 7518 | -5/Extension | Rescued a captive Derelict 7586 | -5/Extension | Found Scrap Suit 7665 | -5/Extension | Lost 3 allies 7699 | -5/Extension | Rescued a captive Derelict 7725 | -5/Extension | Spotted B-75 Beast 7765 | -5/Extension | Spotted B-75 Beast 7771 | -5/Extension | Core integrity fell below 50% 7805 | -5/Extension | Lost 3 allies 7806 | -5/Extension | Destroyed B-75 Beast 7807 | -5/Extension | Allies destroyed B-75 Beast 7828 | -5/Extension | Lost 16 parts (2p8n1u5w) 7881 | -5/Extension | Lost 4 allies 7936 | -5/Extension | Rescued A7 8039 | -5/Extension | Build established: Scavenger-Mutant 8065 | -5/Extension | Rescued a captive Derelict 8066 | -5/Extension | Rescued a captive Derelict 8195 | -5/Extension | First assault squad dispatched 8246 | -5/Extension | Energy Cycler disabled 8246 | -5/Extension | Rescued a captive Derelict 8247 | -5/Extension | Rescued a captive Derelict 8247 | -5/Extension | Rescued a captive Derelict 8248 | -5/Extension | Rescued a captive Derelict 8298 | -5/Extension | Lost 10 allies 8349 | -5/Extension | Discovered new exit (range 10) 8351 | -5/Extension | Discovered new exit (range 6) 8379 | -5/Extension | Disrupted transfer network 8385 | -5/Extension | Entered Cetus 8385 | -5/Cetus | Accompanied by 6 allies (A7) 8390 | -5/Cetus | Acquired a Cetus Manufacturing Module code from A7 8403 | -5/Cetus | Spotted Cetus Guard 8403 | -5/Cetus | Spotted Cetus Guard 8403 | -5/Cetus | Spotted Cetus Guard 8403 | -5/Cetus | Spotted Cetus Guard 8415 | -5/Cetus | Allies destroyed Cetus Guard 8417 | -5/Cetus | Destroyed Cetus Guard 8420 | -5/Cetus | Allies destroyed Cetus Guard 8424 | -5/Cetus | Destroyed Cetus Guard 8454 | -5/Cetus | Lost 4 allies 8504 | -5/Cetus | Started Cetus Manufacturing Module 8511 | -5/Cetus | Discovered new exit (range 23) 8529 | -5/Cetus | Manufactured an Enhanced Grunt 8545 | -5/Cetus | Spotted Cetus Guard 8545 | -5/Cetus | Spotted Cetus Guard 8546 | -5/Cetus | Spotted Cetus Guard 8546 | -5/Cetus | Spotted Cetus Guard 8547 | -5/Cetus | Discovered new exit (range 23) 8553 | -5/Cetus | Allies destroyed Cetus Guard 8554 | -5/Cetus | Manufactured an Enhanced Grunt 8563 | -5/Cetus | Destroyed Cetus Guard 8572 | -5/Cetus | Extracted ID and sensor layout for unrecognized location from A7's data core 8579 | -5/Cetus | Manufactured an Enhanced Grunt 8583 | -5/Cetus | Allies destroyed Cetus Guard 8595 | -5/Cetus | Destroyed Cetus Guard 8601 | -5/Cetus | Found Corrupted Prototype Protection 8604 | -5/Cetus | Manufactured an Enhanced Grunt 8629 | -5/Cetus | Manufactured an Enhanced Grunt 8635 | -5/Cetus | Met Revision 17 8720 | -5/Cetus | Entered Archives 8720 | -5/Archives | Accompanied by 5 allies 8759 | -5/Archives | Build established: Scavenger-Tank 8763 | -5/Archives | Discovered new exit (range 23) 8798 | -5/Archives | Discovered new exit (range 15) 8807 | -5/Archives | Unable to access archive contents 8814 | -5/Archives | Discovered new exit (range 17) 8827 | -5/Archives | Unable to access archive contents 8923 | -5/Archives | Identified Med. Regenerative Plating 9185 | -5/Archives | Entered Hub_04(d) 9185 | -5/Hub_04(d) | Accompanied by 5 allies 9195 | -5/Hub_04(d) | Discovered new exit (range 18) 9309 | -5/Hub_04(d) | Network Hub disabled 9317 | -5/Hub_04(d) | Spotted Lightning 9317 | -5/Hub_04(d) | Spotted Lightning 9317 | -5/Hub_04(d) | Spotted Lightning 9321 | -5/Hub_04(d) | Entered Factory 9321 | -4/Factory | Accompanied by 2 allies 9321 | -4/Factory | Evolved 2 slots: Power x1, Propulsion x1 9350 | -4/Factory | Lost 3 allies 9498 | -4/Factory | Garrison activated, responded to threat 9667 | -4/Factory | Spotted B-86 Titan 10055 | -4/Factory | Discovered new exit (range 9) 10066 | -4/Factory | Cargo convoy interrupted 10071 | -4/Factory | First assault squad dispatched 10071 | -4/Factory | Entered Armory 10072 | -4/Armory | Met VL-GR5, who suggested a friendly competition 10101 | -4/Armory | Lost 5 parts (2p2n1w) 10441 | -4/Armory | VL-GR5 left a parting gift on exiting Armory 10507 | -4/Armory | Loaded intel: 2 recycling unit locations 10958 | -4/Armory | Found Fusion Bomb Launcher 10961 | -4/Armory | Found Fusion Bomb Launcher 10965 | -4/Armory | Found Fusion Bomb Launcher 11454 | -4/Armory | Found Fusion Bomb Launcher 11535 | -4/Armory | Lost 5 parts (1n1u3w) 11587 | -4/Armory | System corruption reached 10% 11754 | -4/Armory | Spotted Armor Guard 11754 | -4/Armory | Spotted Armor Guard 11791 | -4/Armory | Core integrity fell below 50% 11827 | -4/Armory | Core integrity fell below 20% 11830 | -4/Armory | Discovered new exit (range 4) 11832 | -4/Armory | Entered Research 11832 | -3/Research | Evolved 2 slots: Utility x2 11846 | -3/Research | Lost 17 parts (2p2n4u9w) 11929 | -3/Research | Core integrity fell below 50% 11931 | -3/Research | Scrapoids reinforcements arrived? 11941 | -3/Research | Garrison activated, responded to threat 11955 | -3/Research | Found Scrap Suit 11990 | -3/Research | Lost 5 allies 12013 | -3/Research | Lost 3 parts (2p1w) 12032 | -3/Research | Revision forces began assault on 0b10 12069 | -3/Research | Met up with Revision 17++ 12146 | -3/Research | Spotted B-86 Titan 12187 | -3/Research | Core integrity fell below 20% 12198 | -3/Research | Build established: Scavenger-Scrapper 12410 | -3/Research | Discovered new exit (range 16) 12412 | -3/Research | Discovered new exit (range 82) 12489 | -3/Research | Allied Derelicts emerged from ambush trap array 12532 | -3/Research | Research terminal network offline 12565 | -3/Research | Discovered new exit (range 53) 12598 | -3/Research | Build established: Scavenger-Skirmisher 12629 | -3/Research | Spotted Striker 12698 | -3/Research | Loaded intel: 5 recycling unit locations 12735 | -3/Research | Spotted Striker 12736 | -3/Research | Spotted Executioner 12776 | -3/Research | Lost 5 allies 12818 | -3/Research | Entered another Research area 12818 | -2/Research | Evolved 2 slots: Utility x2 12965 | -2/Research | Garrison activated, responded to threat 12999 | -2/Research | Lost 4 allies 13416 | -2/Research | Destroyed 9 combat bots 13588 | -2/Research | Lost 8 parts (1p1n2u4w) 13741 | -2/Research | Garrison activated, responded to threat 13763 | -2/Research | Spotted B-90 Cyclops 13772 | -2/Research | System corruption reached 10% 13773 | -2/Research | Identified exit to Testing 13774 | -2/Research | Core integrity fell below 50% 13818 | -2/Research | First assault squad dispatched 13821 | -2/Research | Spotted B-90 Cyclops 13831 | -2/Research | Lost 15 parts (2p4n5u4w) 13849 | -2/Research | Core integrity fell below 20% 13854 | -2/Research | Spotted B-90 Cyclops 14078 | -2/Research | Destroyed by P-80 Master with Gamma Rifle Last Messages --------------- 14024_ System corrupted: Component data lost. 14030_ Acquired 31 matter. 14041_ XOODE|DM6BLNCEVJ=|9CFJOS5L ZS 14063_ Acquired 8 matter. 14064_ Acquired 12 matter. 14066_ Dropped Q-thruster. 14066_ Acquired Biometal Leg. 14068_ ALERT: Unidentified disturbance in Zone 4P, assault force dispatched. 14069_ Penetrated by Slug. 14072_ Adv. Heat Sink destroyed. 14074_ Slug penetrates P-80 Master. 14074_ Acquired 10 matter. 14075_ Penetrated by Slug. 14075_ Slug penetrates Wall. 14075_ P-80 Master resets P-80 Master, system corruption cleaned. 14075_ Door malfunctions. 14076_ Biometal Leg destroyed. 14076_ Knocked back. Map ----- +----------------------------------------------------+ | ???????????# ##!#?#! # !!# !! | | ???????????# ##=#?####### !!# = | | ???????????# ##%##??????#######+####### | | ???????????# ##!##????????????# ##????? | | ???????????# ##!###???????????# #?????? | | ???????????# # %=####?????????# #?????? | | ???????????# + [%[ =#?????????# #?????? | | ???????????# #!! ## #?????????# ##????? | | ???????????# ###### #?????????# "#????? | | ???????????###############?### ###??????##"####### | | ????????????????????# # #?????## | | ????????????????????# # ##+##### | | ????????????????????# + +[ | | ????????????????????# [ # ##+##### """"" | | ????????????????????# # #??????# """"" | | ????????????????????# ?## ##??????# """ ] | | ????????????????????######?#" #???????# [ | | ???????????????????????????## #???????# [%! | | ?????????????????############ #???????#####/#### | | ?????????????????# ##" ###??????# |=!*!! | | ?????????????????# # #??????# [[[ | | ?????????????????# """ # H #??????# = | | ?????????????????# """ # #??????# ! | | ?????????????????# """ / +??????# ! | | ?????????????????# """ p# #??????# ! | | ?????????????????# """ @# #??????# | | ?????????????????# # #??????# | | ?????????????????# !## ##??????# | | ?????????????????########### #???????# | | ??????????????????????????? #???????# | | ??????????????????????????? #???????# | | ??????????????????????????? ???????# | | ??????????????????????????? ##??????# | | ??????????????????????????? #???????# " | | ???????????????????????????#######???????### " | | ???????????????????????????????????????????# | | ???????????????????????????????????????????# | | ???????????????????????????????????????????# | | ???????????????????????????????????????????# | | ???????????????????????????????????????????# | | ???????????????????????????????????????????# | | ?????>?????????????????????????????????????# | | ???????????????????????????????????????????# | | ???????????????????????????????????????????# ## | | ???????????????????????????????????????????# # | | ???????????????????????????????????????????# # | | ???????????????????????????????????????????# # | | ???????????????????????????????????????????# # | | ???????????????????????????????????????????# + | | ???????????????????????????????????????????# # | +----------------------------------------------------+ Best States ------------- Heat Dissipation 156 Coolant Potential 120 Energy Generation 45 Energy Capacity 580 Matter Stores 300 Matter Capacity 300 Sight Range 24 Robot Scan Range 18 Terrain Scan Density 10 Power Amplification 20 Corruption Containment 8 Armor Coverage 900 Resistance: TH 30 Weapon Cycling 20 Phase Shifting 15 Evasion (%) 70 Targeting Accuracy 6 Target Analysis 8 Recoil Reduction 6 Particle Charging 20 Offensive Hacking 12 Defensive Hacking 10 Item Schematics ----------------- None Robot Schematics ------------------ None Fabricated ------------ Nothing Repaired ---------- Nothing Alien Tech Used ----------------- None Achievements -------------- None Challenges ------------ None Game ------ Seed SpectralDimensionalMeganuke Manual? 0 Play Time 05:29:05 Cumulative 230.3 hours Start 2025.05.31 @ 11:00:34 End 2025.06.01 @ 12:02:17 Sessions 11 Manual Loads 0 Difficulty Rogue Special Mode None Game No. 214 Rogue 214 Adventurer 0 Explorer 0 Win Type - Total 1 Types 1/0/0/0/0/0/0/0/0/0 Lore% 73 Gallery% 60 Achievement% 49 Wizard Run 0 Options --------- Layout 1 ASCII 0 Keyboard 0 Movement Mouse Keybinds 0 Fullscreen 1 Font 24/Smallcaps Map View 50x35 Zoom Use 0% Tactical HUD 1 Map Filters NONE Filters NONE Steam 1 RUN: 23e8be13-abbc-4014-8e30-2da0450b412b